[Event "Titled Tuesday Blitz February 22 Late 2022"]
[White "Piesik, Piotr"]
[Black "Shirov, Alexei"]
[WhiteFideId "1136194"]
[BlackFideId "2209390"]
[WhiteElo "2232"]
[BlackElo "2645"]
[Result "0-1"]
[Round "10"]
[TimeControl "180+1"]
[Date "2022.02.22"]
[WhiteClock "0:01:04"]
[BlackClock "0:01:01"]

1. Nf3 {[%clk 0:03:00]}  d5 {[%clk 0:02:59]} 2. g3 {[%clk 0:03:01]}  g6 {[%clk 0:02:58]} 3. Bg2 {[%clk 0:03:01]}  Bg7 {[%clk 0:02:59]} 4. d4 {[%clk 0:03:01]}  Nf6 {[%clk 0:02:56]} 5. O-O {[%clk 0:03:02]}  O-O {[%clk 0:02:55]} 6. c4 {[%clk 0:03:02]}  c6 {[%clk 0:02:54]} 7. cxd5 {[%clk 0:03:02]}  cxd5 {[%clk 0:02:54]} 8. Nc3 {[%clk 0:03:02]}  Ne4 {[%clk 0:02:47]} 9. Qb3 {[%clk 0:03:02]}  Nc6 {[%clk 0:02:46]} 10. e3 {[%clk 0:02:57]}  Na5 {[%clk 0:02:43]} 11. Qb4 {[%clk 0:02:52]}  Bf5 {[%clk 0:02:38]} 12. Nxe4 {[%clk 0:02:50]}  Bxe4 {[%clk 0:02:38]} 13. Bd2 {[%clk 0:02:48]}  Nc4 {[%clk 0:02:35]} 14. b3 {[%clk 0:02:46]}  a5 {[%clk 0:02:31]} 15. Qc3 {[%clk 0:02:44]}  Nd6 {[%clk 0:02:30]} 16. Rfc1 {[%clk 0:02:38]}  a4 {[%clk 0:02:28]} 17. Qb4 {[%clk 0:02:36]}  Qd7 {[%clk 0:02:18]} 18. Ne1 {[%clk 0:02:16]}  Rfc8 {[%clk 0:02:06]} 19. f3 {[%clk 0:02:12]}  Bf5 {[%clk 0:02:03]} 20. Bf1 {[%clk 0:02:09]}  e5 {[%clk 0:02:02]} 21. dxe5 {[%clk 0:02:01]}  Bxe5 {[%clk 0:02:01]} 22. Bc3 {[%clk 0:02:01]}  Rxc3 {[%clk 0:01:51]} 23. Rxc3 {[%clk 0:02:02]}  axb3 {[%clk 0:01:51]} 24. Qxb3 {[%clk 0:01:57]}  Nc4 {[%clk 0:01:45]} 25. Rac1 {[%clk 0:01:51]}  Ra3 {[%clk 0:01:39]} 26. Qxa3 {[%clk 0:01:37]}  Nxa3 {[%clk 0:01:37]} 27. Rxa3 {[%clk 0:01:38]}  Bb2 {[%clk 0:01:35]} 28. Ra8+ {[%clk 0:01:38]}  Kg7 {[%clk 0:01:34]} 29. Rd1 {[%clk 0:01:38]}  Qc6 {[%clk 0:01:10]} 30. Rd8 {[%clk 0:01:26]}  Be6 {[%clk 0:01:09]} 31. Nd3 {[%clk 0:01:18]}  Qb6 {[%clk 0:01:09]} 32. Nxb2 {[%clk 0:01:09]}  Qxd8 {[%clk 0:01:07]} 33. Nd3 {[%clk 0:01:04]}  Qa5 {[%clk 0:01:04]} 34. Nf4 {[%clk 0:01:04]}  Qxa2 {[%clk 0:01:01]} 0-1


[Site "https://www.chess.com"]

[Event "Titled Tuesday Blitz February 22 Late 2022"]
[White "Ponkratov, Pavel"]
[Black "Hakobyan, Aram"]
[WhiteFideId "4157800"]
[BlackFideId "13306677"]
[WhiteElo "2487"]
[BlackElo "2557"]
[Result "1-0"]
[Round "10"]
[TimeControl "180+1"]
[Date "2022.02.22"]
[WhiteClock "0:00:15"]
[BlackClock "0:00:03"]

1. d4 {[%clk 0:03:00]}  Nf6 {[%clk 0:02:58]} 2. c4 {[%clk 0:02:59]}  e6 {[%clk 0:02:57]} 3. Nc3 {[%clk 0:02:59]}  Bb4 {[%clk 0:02:58]} 4. Qa4 {[%clk 0:02:59]}  Bxc3+ {[%clk 0:02:57]} 5. bxc3 {[%clk 0:03:00]}  O-O {[%clk 0:02:58]} 6. Bg5 {[%clk 0:02:57]}  d6 {[%clk 0:02:56]} 7. Qc2 {[%clk 0:02:54]}  Re8 {[%clk 0:02:45]} 8. e4 {[%clk 0:02:53]}  e5 {[%clk 0:02:45]} 9. Bd3 {[%clk 0:02:47]}  h6 {[%clk 0:02:43]} 10. Bxf6 {[%clk 0:02:37]}  Qxf6 {[%clk 0:02:42]} 11. Ne2 {[%clk 0:02:37]}  Nc6 {[%clk 0:02:43]} 12. d5 {[%clk 0:02:37]}  Ne7 {[%clk 0:02:42]} 13. O-O {[%clk 0:02:37]}  Ng6 {[%clk 0:02:43]} 14. a4 {[%clk 0:02:33]}  a5 {[%clk 0:02:43]} 15. c5 {[%clk 0:02:32]}  dxc5 {[%clk 0:02:44]} 16. f3 {[%clk 0:02:29]}  b6 {[%clk 0:02:44]} 17. g3 {[%clk 0:02:28]}  Bh3 {[%clk 0:02:44]} 18. Rf2 {[%clk 0:02:28]}  Rad8 {[%clk 0:02:44]} 19. c4 {[%clk 0:02:28]}  c6 {[%clk 0:02:36]} 20. Kh1 {[%clk 0:02:27]}  cxd5 {[%clk 0:02:36]} 21. cxd5 {[%clk 0:02:27]}  Bd7 {[%clk 0:02:33]} 22. Rb1 {[%clk 0:02:27]}  Rc8 {[%clk 0:02:33]} 23. Bc4 {[%clk 0:02:26]}  Rc7 {[%clk 0:02:26]} 24. Nc3 {[%clk 0:02:24]}  Ne7 {[%clk 0:02:25]} 25. Qd3 {[%clk 0:02:19]}  Nc8 {[%clk 0:02:25]} 26. f4 {[%clk 0:02:20]}  Nd6 {[%clk 0:02:24]} 27. f5 {[%clk 0:02:17]}  Rb8 {[%clk 0:02:23]} 28. Rfb2 {[%clk 0:02:15]}  Nxc4 {[%clk 0:01:43]} 29. Qxc4 {[%clk 0:02:15]}  Rcb7 {[%clk 0:01:41]} 30. Kg2 {[%clk 0:02:06]}  Qd6 {[%clk 0:01:41]} 31. Rb3 {[%clk 0:02:04]}  Kh7 {[%clk 0:01:39]} 32. Nd1 {[%clk 0:02:01]}  Ra8 {[%clk 0:01:24]} 33. h4 {[%clk 0:01:55]}  b5 {[%clk 0:01:25]} 34. axb5 {[%clk 0:01:53]}  a4 {[%clk 0:01:26]} 35. Ra3 {[%clk 0:01:54]}  Ra5 {[%clk 0:01:26]} 36. Nc3 {[%clk 0:01:54]}  Qb8 {[%clk 0:01:13]} 37. Qxc5 {[%clk 0:01:25]}  Bxb5 {[%clk 0:00:40]} 38. Kh2 {[%clk 0:01:21]}  Bf1 {[%clk 0:00:36]} 39. Rxb7 {[%clk 0:01:09]}  Qxb7 {[%clk 0:00:37]} 40. Qf2 {[%clk 0:01:09]}  Qb4 {[%clk 0:00:34]} 41. Rxa4 {[%clk 0:00:53]}  Rxa4 {[%clk 0:00:34]} 42. Nxa4 {[%clk 0:00:54]}  Qxa4 {[%clk 0:00:22]} 43. Qxf1 {[%clk 0:00:54]}  Qxe4 {[%clk 0:00:23]} 44. Qd1 {[%clk 0:00:50]}  Qxf5 {[%clk 0:00:23]} 45. d6 {[%clk 0:00:51]}  Qd7 {[%clk 0:00:23]} 46. Qc2+ {[%clk 0:00:51]}  f5 {[%clk 0:00:20]} 47. Qc7 {[%clk 0:00:50]}  Qb5 {[%clk 0:00:20]} 48. Qc2 {[%clk 0:00:43]}  Kg6 {[%clk 0:00:20]} 49. g4 {[%clk 0:00:35]}  e4 {[%clk 0:00:20]} 50. Qd2 {[%clk 0:00:22]}  Qd7 {[%clk 0:00:15]} 51. Qd5 {[%clk 0:00:21]}  fxg4 {[%clk 0:00:12]} 52. Kg3 {[%clk 0:00:20]}  Kf6 {[%clk 0:00:11]} 53. Kf4 {[%clk 0:00:20]}  e3 {[%clk 0:00:10]} 54. Qe5+ {[%clk 0:00:18]}  Kf7 {[%clk 0:00:11]} 55. Qd5+ {[%clk 0:00:17]}  Qe6 {[%clk 0:00:09]} 56. Qb7+ {[%clk 0:00:17]}  Kg6 {[%clk 0:00:07]} 57. Qb1+ {[%clk 0:00:17]}  Kf6 {[%clk 0:00:06]} 58. Qb2+ {[%clk 0:00:17]}  Kf7 {[%clk 0:00:07]} 59. Qb7+ {[%clk 0:00:17]}  Kg8 {[%clk 0:00:06]} 60. d7 {[%clk 0:00:16]}  e2 {[%clk 0:00:01]} 61. d8=Q+ {[%clk 0:00:16]}  Kh7 {[%clk 0:00:02]} 62. Qb1+ {[%clk 0:00:15]}  g6 {[%clk 0:00:02]} 63. Qb7+ {[%clk 0:00:15]}  Qf7+ {[%clk 0:00:03]} 64. Qxf7# {[%clk 0:00:15]} 1-0


[Site "https://www.chess.com"]

[Event "Titled Tuesday Blitz February 22 Late 2022"]
[White "Rorrer, Grayson"]
[Black "Debray, Christopher"]
[WhiteFideId "30944996"]
[BlackFideId "630810"]
[WhiteElo "2122"]
[BlackElo "2369"]
[Result "1-0"]
[Round "10"]
[TimeControl "180+1"]
[Date "2022.02.22"]
[WhiteClock "0:00:40"]
[BlackClock "0:00:05"]

1. e4 {[%clk 0:03:00]}  e5 {[%clk 0:03:00]} 2. Nc3 {[%clk 0:03:00]}  Nf6 {[%clk 0:02:59]} 3. d4 {[%clk 0:03:00]}  exd4 {[%clk 0:02:53]} 4. Qxd4 {[%clk 0:03:01]}  Nc6 {[%clk 0:02:49]} 5. Qd3 {[%clk 0:03:01]}  Be7 {[%clk 0:02:39]} 6. Bf4 {[%clk 0:02:59]}  d6 {[%clk 0:02:37]} 7. O-O-O {[%clk 0:02:58]}  O-O {[%clk 0:02:37]} 8. Nge2 {[%clk 0:02:56]}  Be6 {[%clk 0:02:30]} 9. h4 {[%clk 0:02:51]}  Ne5 {[%clk 0:02:30]} 10. Qd2 {[%clk 0:02:38]}  c6 {[%clk 0:02:10]} 11. Nd4 {[%clk 0:02:32]}  Qa5 {[%clk 0:01:50]} 12. Nxe6 {[%clk 0:01:52]}  fxe6 {[%clk 0:01:51]} 13. f3 {[%clk 0:01:43]}  b5 {[%clk 0:01:32]} 14. Kb1 {[%clk 0:01:25]}  Nc4 {[%clk 0:01:08]} 15. Bxc4 {[%clk 0:01:07]}  bxc4 {[%clk 0:01:08]} 16. Nd5 {[%clk 0:01:03]}  Nxd5 {[%clk 0:00:23]} 17. Qxa5 {[%clk 0:01:02]}  Nxf4 {[%clk 0:00:23]} 18. Qc7 {[%clk 0:00:56]}  Rfe8 {[%clk 0:00:12]} 19. Qxc6 {[%clk 0:00:52]}  Rac8 {[%clk 0:00:11]} 20. Qd7 {[%clk 0:00:49]}  Ng6 {[%clk 0:00:09]} 21. Qxe6+ {[%clk 0:00:48]}  Kh8 {[%clk 0:00:09]} 22. h5 {[%clk 0:00:45]}  Nf4 {[%clk 0:00:08]} 23. Qf7 {[%clk 0:00:40]}  Ne2 {[%clk 0:00:05]} 24. h6 {[%clk 0:00:40]}  Bf6 {[%clk 0:00:04]} 25. hxg7+ {[%clk 0:00:39]}  Bxg7 {[%clk 0:00:05]} 26. Rxh7+ {[%clk 0:00:39]}  Kxh7 {[%clk 0:00:05]} 27. Rh1# {[%clk 0:00:40]} 1-0


[Site "https://www.chess.com"]

[Event "Titled Tuesday Blitz February 22 Late 2022"]
[White "Rustemov, Alexander"]
[Black "Lewtak, Damian"]
[WhiteFideId "4119002"]
[BlackFideId "1141724"]
[WhiteElo "2704"]
[BlackElo "2361"]
[Result "0-1"]
[Round "10"]
[TimeControl "180+1"]
[Date "2022.02.22"]
[WhiteClock "0:00:03"]
[BlackClock "0:00:05"]

1. d4 {[%clk 0:03:00]}  Nf6 {[%clk 0:02:57]} 2. c4 {[%clk 0:03:01]}  c6 {[%clk 0:02:57]} 3. Nc3 {[%clk 0:02:59]}  d5 {[%clk 0:02:54]} 4. e3 {[%clk 0:03:00]}  e6 {[%clk 0:02:47]} 5. Nf3 {[%clk 0:02:59]}  Nbd7 {[%clk 0:02:47]} 6. Qc2 {[%clk 0:03:00]}  Bd6 {[%clk 0:02:41]} 7. Bd2 {[%clk 0:03:00]}  O-O {[%clk 0:02:33]} 8. O-O-O {[%clk 0:03:00]}  b5 {[%clk 0:02:31]} 9. e4 {[%clk 0:02:59]}  b4 {[%clk 0:02:28]} 10. e5 {[%clk 0:02:59]}  bxc3 {[%clk 0:02:21]} 11. Bxc3 {[%clk 0:03:00]}  Ne4 {[%clk 0:02:21]} 12. exd6 {[%clk 0:03:00]}  Nxc3 {[%clk 0:02:19]} 13. Qxc3 {[%clk 0:02:59]}  dxc4 {[%clk 0:02:19]} 14. Bxc4 {[%clk 0:02:57]}  Nb6 {[%clk 0:02:18]} 15. Bb3 {[%clk 0:02:53]}  Qxd6 {[%clk 0:02:16]} 16. Kb1 {[%clk 0:02:51]}  a5 {[%clk 0:02:03]} 17. a3 {[%clk 0:02:47]}  Ba6 {[%clk 0:01:55]} 18. Rc1 {[%clk 0:02:45]}  Rfc8 {[%clk 0:01:48]} 19. Ne5 {[%clk 0:02:39]}  Bb5 {[%clk 0:01:31]} 20. Qc5 {[%clk 0:02:33]}  Qb8 {[%clk 0:01:25]} 21. Rhe1 {[%clk 0:02:25]}  a4 {[%clk 0:01:18]} 22. Ba2 {[%clk 0:02:23]}  Ra5 {[%clk 0:01:13]} 23. Qc3 {[%clk 0:02:12]}  Ra7 {[%clk 0:01:09]} 24. f4 {[%clk 0:02:06]}  Rd8 {[%clk 0:01:03]} 25. g4 {[%clk 0:01:47]}  Nd5 {[%clk 0:01:03]} 26. Bxd5 {[%clk 0:01:39]}  cxd5 {[%clk 0:01:04]} 27. g5 {[%clk 0:01:26]}  Rb7 {[%clk 0:01:03]} 28. Ka1 {[%clk 0:01:24]}  Be8 {[%clk 0:00:50]} 29. Re2 {[%clk 0:01:21]}  Kh8 {[%clk 0:00:40]} 30. Rec2 {[%clk 0:01:18]}  f6 {[%clk 0:00:37]} 31. gxf6 {[%clk 0:01:01]}  gxf6 {[%clk 0:00:38]} 32. Nc6 {[%clk 0:01:01]}  Bxc6 {[%clk 0:00:36]} 33. Qxc6 {[%clk 0:01:02]}  Rb6 {[%clk 0:00:35]} 34. Qxa4 {[%clk 0:00:59]}  Qxf4 {[%clk 0:00:33]} 35. Rc8 {[%clk 0:00:56]}  Rb8 {[%clk 0:00:23]} 36. R8c7 {[%clk 0:00:47]}  Qd2 {[%clk 0:00:15]} 37. R1c2 {[%clk 0:00:44]}  Qd1+ {[%clk 0:00:15]} 38. Ka2 {[%clk 0:00:44]}  Rxb2+ {[%clk 0:00:14]} 39. Kxb2 {[%clk 0:00:36]}  Rb8+ {[%clk 0:00:14]} 40. Qb4 {[%clk 0:00:26]}  Rxb4+ {[%clk 0:00:14]} 41. axb4 {[%clk 0:00:26]}  Qxd4+ {[%clk 0:00:14]} 42. Kb3 {[%clk 0:00:27]}  Qd3+ {[%clk 0:00:14]} 43. R2c3 {[%clk 0:00:26]}  Qb1+ {[%clk 0:00:12]} 44. Ka4 {[%clk 0:00:26]}  d4 {[%clk 0:00:12]} 45. R3c6 {[%clk 0:00:25]}  Qa2+ {[%clk 0:00:11]} 46. Kb5 {[%clk 0:00:26]}  d3 {[%clk 0:00:09]} 47. Rd6 {[%clk 0:00:25]}  Qa8 {[%clk 0:00:05]} 48. Rxd3 {[%clk 0:00:18]}  Qb8+ {[%clk 0:00:04]} 49. Kc6 {[%clk 0:00:18]}  e5 {[%clk 0:00:05]} 50. Rdd7 {[%clk 0:00:17]}  Qa8+ {[%clk 0:00:02]} 51. Kd6 {[%clk 0:00:16]}  Qa6+ {[%clk 0:00:03]} 52. Ke7 {[%clk 0:00:16]}  Kg7 {[%clk 0:00:02]} 53. Rb7 {[%clk 0:00:14]}  Kg6 {[%clk 0:00:02]} 54. b5 {[%clk 0:00:15]}  Qa3+ {[%clk 0:00:02]} 55. Kd8 {[%clk 0:00:14]}  e4 {[%clk 0:00:02]} 56. Re7 {[%clk 0:00:13]}  e3 {[%clk 0:00:02]} 57. b6 {[%clk 0:00:13]}  Qd6+ {[%clk 0:00:02]} 58. Kc8 {[%clk 0:00:13]}  Qc6+ {[%clk 0:00:02]} 59. Kb8 {[%clk 0:00:12]}  Qd6+ {[%clk 0:00:03]} 60. Ka7 {[%clk 0:00:12]}  Qa3+ {[%clk 0:00:03]} 61. Kb8 {[%clk 0:00:13]}  Qd6+ {[%clk 0:00:04]} 62. Kc8 {[%clk 0:00:13]}  Qc6+ {[%clk 0:00:04]} 63. Kd8 {[%clk 0:00:13]}  Qd6+ {[%clk 0:00:05]} 64. Ke8 {[%clk 0:00:12]}  Qc6+ {[%clk 0:00:05]} 65. Kd8 {[%clk 0:00:11]}  e2 {[%clk 0:00:05]} 66. Rg7+ {[%clk 0:00:07]}  Kf5 {[%clk 0:00:05]} 67. Rbe7 {[%clk 0:00:04]}  Qd6+ {[%clk 0:00:05]} 68. Kc8 {[%clk 0:00:04]}  Qxb6 {[%clk 0:00:05]} 69. Kd7 {[%clk 0:00:02]}  Qb7+ {[%clk 0:00:05]} 70. Ke8 {[%clk 0:00:02]}  Qa8+ {[%clk 0:00:05]} 71. Kf7 {[%clk 0:00:02]}  Qa2+ {[%clk 0:00:05]} 72. Kf8 {[%clk 0:00:01]}  Qd2 {[%clk 0:00:05]} 73. Kf7 {[%clk 0:00:02]}  e1=Q {[%clk 0:00:05]} 74. Rxe1 {[%clk 0:00:02]}  Qxe1 {[%clk 0:00:06]} 75. Rxh7 {[%clk 0:00:03]}  Qe6+ {[%clk 0:00:06]} 76. Kg7 {[%clk 0:00:03]}  Qd7+ {[%clk 0:00:06]} 77. Kh6 {[%clk 0:00:04]}  Qe8 {[%clk 0:00:05]} 78. Kg7 {[%clk 0:00:03]}  Qg6+ {[%clk 0:00:05]} 79. Kh8 {[%clk 0:00:03]}  Ke6 {[%clk 0:00:05]} 80. h4 {[%clk 0:00:03]}  Qe8+ {[%clk 0:00:04]} 81. Kg7 {[%clk 0:00:03]}  f5 {[%clk 0:00:05]} 82. h5 {[%clk 0:00:03]}  Qf7+ {[%clk 0:00:05]} 83. Kh6 {[%clk 0:00:03]}  Qf6# {[%clk 0:00:05]} 0-1


[Site "https://www.chess.com"]

[Event "Titled Tuesday Blitz February 22 Late 2022"]
[White "Sanchez Alvares, Kelvin Antonio"]
[Black "Leitao, Rafael"]
[WhiteFideId "3906680"]
[BlackFideId "2101246"]
[WhiteElo "2193"]
[BlackElo "2609"]
[Result "1-0"]
[Round "10"]
[TimeControl "180+1"]
[Date "2022.02.22"]
[WhiteClock "0:00:02"]
[BlackClock "0:00:04"]

1. d4 {[%clk 0:03:00]}  Nf6 {[%clk 0:02:59]} 2. c4 {[%clk 0:03:01]}  e6 {[%clk 0:02:59]} 3. Nf3 {[%clk 0:03:01]}  Bb4+ {[%clk 0:02:57]} 4. Bd2 {[%clk 0:02:59]}  c5 {[%clk 0:02:57]} 5. a3 {[%clk 0:02:50]}  Bxd2+ {[%clk 0:02:55]} 6. Qxd2 {[%clk 0:02:51]}  cxd4 {[%clk 0:02:53]} 7. Nxd4 {[%clk 0:02:50]}  O-O {[%clk 0:02:53]} 8. Nc3 {[%clk 0:02:49]}  a6 {[%clk 0:02:37]} 9. e4 {[%clk 0:02:46]}  d6 {[%clk 0:02:36]} 10. Be2 {[%clk 0:02:45]}  b6 {[%clk 0:02:35]} 11. O-O {[%clk 0:02:45]}  Bb7 {[%clk 0:02:35]} 12. f3 {[%clk 0:02:46]}  Qc7 {[%clk 0:02:33]} 13. Rfd1 {[%clk 0:02:45]}  Rd8 {[%clk 0:02:26]} 14. Rac1 {[%clk 0:02:44]}  Nbd7 {[%clk 0:02:26]} 15. b4 {[%clk 0:02:38]}  Ne5 {[%clk 0:02:22]} 16. Bf1 {[%clk 0:02:33]}  Rac8 {[%clk 0:02:17]} 17. Na4 {[%clk 0:02:33]}  Ba8 {[%clk 0:02:12]} 18. Qe3 {[%clk 0:02:26]}  Qb8 {[%clk 0:02:09]} 19. Nb3 {[%clk 0:02:10]}  Ned7 {[%clk 0:01:58]} 20. Qd4 {[%clk 0:02:00]}  Ne8 {[%clk 0:01:54]} 21. Qe3 {[%clk 0:01:50]}  Bc6 {[%clk 0:01:45]} 22. Nc3 {[%clk 0:01:46]}  Ne5 {[%clk 0:01:45]} 23. a4 {[%clk 0:01:32]}  Ba8 {[%clk 0:01:33]} 24. Nb1 {[%clk 0:01:15]}  h6 {[%clk 0:01:24]} 25. Na3 {[%clk 0:01:10]}  Nf6 {[%clk 0:01:06]} 26. Rb1 {[%clk 0:01:04]}  Qc7 {[%clk 0:01:01]} 27. a5 {[%clk 0:00:58]}  bxa5 {[%clk 0:01:01]} 28. b5 {[%clk 0:00:58]}  a4 {[%clk 0:00:57]} 29. b6 {[%clk 0:00:55]}  Qb8 {[%clk 0:00:52]} 30. Na5 {[%clk 0:00:55]}  Bb7 {[%clk 0:00:51]} 31. Qc3 {[%clk 0:00:41]}  d5 {[%clk 0:00:42]} 32. exd5 {[%clk 0:00:41]}  Nxd5 {[%clk 0:00:37]} 33. Qe1 {[%clk 0:00:34]}  Nxf3+ {[%clk 0:00:23]} 34. gxf3 {[%clk 0:00:32]}  Nf4 {[%clk 0:00:20]} 35. Qe3 {[%clk 0:00:26]}  Rxd1 {[%clk 0:00:19]} 36. Rxd1 {[%clk 0:00:26]}  Ng6 {[%clk 0:00:17]} 37. Nxb7 {[%clk 0:00:25]}  Qxb7 {[%clk 0:00:17]} 38. c5 {[%clk 0:00:25]}  Ne7 {[%clk 0:00:16]} 39. Nc4 {[%clk 0:00:25]}  Nd5 {[%clk 0:00:16]} 40. Qd4 {[%clk 0:00:20]}  Qe7 {[%clk 0:00:16]} 41. Nd6 {[%clk 0:00:19]}  Qg5+ {[%clk 0:00:16]} 42. Qg4 {[%clk 0:00:19]}  Qe3+ {[%clk 0:00:16]} 43. Kh1 {[%clk 0:00:19]}  Rxc5 {[%clk 0:00:14]} 44. b7 {[%clk 0:00:18]}  Qb3 {[%clk 0:00:14]} 45. Qd4 {[%clk 0:00:14]}  Rc6 {[%clk 0:00:13]} 46. Nc4 {[%clk 0:00:09]}  Qxb7 {[%clk 0:00:10]} 47. Na5 {[%clk 0:00:09]}  Qc7 {[%clk 0:00:11]} 48. Nxc6 {[%clk 0:00:09]}  Qxc6 {[%clk 0:00:11]} 49. Bd3 {[%clk 0:00:09]}  Nc3 {[%clk 0:00:09]} 50. Be4 {[%clk 0:00:07]}  Nxe4 {[%clk 0:00:02]} 51. Qxe4 {[%clk 0:00:07]}  Qc7 {[%clk 0:00:02]} 52. Qa8+ {[%clk 0:00:07]}  Kh7 {[%clk 0:00:01]} 53. Qd8 {[%clk 0:00:07]}  Qc6 {[%clk 0:00:01]} 54. Qd3+ {[%clk 0:00:07]}  g6 {[%clk 0:00:01]} 55. Qe4 {[%clk 0:00:07]}  Qc7 {[%clk 0:00:02]} 56. Rg1 {[%clk 0:00:06]}  Qd7 {[%clk 0:00:02]} 57. h4 {[%clk 0:00:06]}  a3 {[%clk 0:00:02]} 58. h5 {[%clk 0:00:06]}  Qe8 {[%clk 0:00:02]} 59. hxg6+ {[%clk 0:00:06]}  fxg6 {[%clk 0:00:02]} 60. Qb7+ {[%clk 0:00:04]}  Kh8 {[%clk 0:00:02]} 61. Qb4 {[%clk 0:00:03]}  a2 {[%clk 0:00:02]} 62. Qb2+ {[%clk 0:00:03]}  Kh7 {[%clk 0:00:03]} 63. Qxa2 {[%clk 0:00:04]}  Qf7 {[%clk 0:00:03]} 64. Rg3 {[%clk 0:00:03]}  Qf4 {[%clk 0:00:03]} 65. Kg2 {[%clk 0:00:03]}  h5 {[%clk 0:00:04]} 66. Qf2 {[%clk 0:00:02]}  h4 {[%clk 0:00:04]} 67. Rg4 {[%clk 0:00:03]}  h3+ {[%clk 0:00:05]} 68. Kxh3 {[%clk 0:00:03]}  Qf5 {[%clk 0:00:06]} 69. Qh4+ {[%clk 0:00:03]}  Kg7 {[%clk 0:00:06]} 70. Qe7+ {[%clk 0:00:03]}  Kg8 {[%clk 0:00:06]} 71. Qe8+ {[%clk 0:00:02]}  Kg7 {[%clk 0:00:07]} 72. Kg2 {[%clk 0:00:03]}  Qc2+ {[%clk 0:00:06]} 73. Kg3 {[%clk 0:00:03]}  Qc7+ {[%clk 0:00:06]} 74. Kh3 {[%clk 0:00:03]}  Qc2 {[%clk 0:00:05]} 75. Qe7+ {[%clk 0:00:03]}  Kg8 {[%clk 0:00:04]} 76. Qf6 {[%clk 0:00:02]}  Kh7 {[%clk 0:00:04]} 77. Qf7+ {[%clk 0:00:02]} 1-0


[Site "https://www.chess.com"]

[Event "Titled Tuesday Blitz February 22 Late 2022"]
[White "Sargsyan, Anna M."]
[Black "Todorovic, Bojan"]
[WhiteFideId "13308130"]
[BlackFideId "917087"]
[WhiteElo "2271"]
[BlackElo "2266"]
[Result "1-0"]
[Round "10"]
[TimeControl "180+1"]
[Date "2022.02.23"]
[WhiteClock "0:01:21"]
[BlackClock "0:00:22"]

1. e4 {[%clk 0:02:55]}  g6 {[%clk 0:02:58]} 2. d4 {[%clk 0:02:54]}  Bg7 {[%clk 0:02:58]} 3. Nc3 {[%clk 0:02:54]}  d6 {[%clk 0:02:58]} 4. f4 {[%clk 0:02:52]}  a6 {[%clk 0:02:58]} 5. Nf3 {[%clk 0:02:52]}  Nd7 {[%clk 0:02:57]} 6. Be3 {[%clk 0:02:50]}  b5 {[%clk 0:02:56]} 7. a3 {[%clk 0:02:49]}  Bb7 {[%clk 0:02:55]} 8. Bd3 {[%clk 0:02:50]}  Ngf6 {[%clk 0:02:53]} 9. O-O {[%clk 0:02:47]}  c5 {[%clk 0:02:48]} 10. e5 {[%clk 0:02:42]}  Nd5 {[%clk 0:02:41]} 11. Nxd5 {[%clk 0:02:41]}  Bxd5 {[%clk 0:02:40]} 12. dxc5 {[%clk 0:02:36]}  dxc5 {[%clk 0:02:30]} 13. Bxb5 {[%clk 0:02:34]}  axb5 {[%clk 0:02:08]} 14. Qxd5 {[%clk 0:02:34]}  O-O {[%clk 0:02:08]} 15. e6 {[%clk 0:02:30]}  Nb6 {[%clk 0:01:40]} 16. exf7+ {[%clk 0:02:29]}  Rxf7 {[%clk 0:01:38]} 17. Qxc5 {[%clk 0:02:22]}  Nc4 {[%clk 0:01:31]} 18. Rad1 {[%clk 0:02:12]}  Qc8 {[%clk 0:01:14]} 19. Ng5 {[%clk 0:02:01]}  Rf5 {[%clk 0:01:12]} 20. Qxe7 {[%clk 0:01:49]}  Nxe3 {[%clk 0:00:53]} 21. Qxe3 {[%clk 0:01:30]}  h6 {[%clk 0:00:41]} 22. Ne6 {[%clk 0:01:21]}  Bxb2 {[%clk 0:00:21]} 23. Rd8+ {[%clk 0:01:20]}  Qxd8 {[%clk 0:00:22]} 24. Nxd8 {[%clk 0:01:20]}  Rxd8 {[%clk 0:00:22]} 25. Qb3+ {[%clk 0:01:21]} 1-0


[Site "https://www.chess.com"]

[Event "Titled Tuesday Blitz February 22 Late 2022"]
[White "Sevian, Samuel"]
[Black "Golubka, Petro"]
[WhiteFideId "2040506"]
[BlackFideId "14114224"]
[WhiteElo "2698"]
[BlackElo "2392"]
[Result "1-0"]
[Round "10"]
[TimeControl "180+1"]
[Date "2022.02.22"]
[WhiteClock "0:02:08"]
[BlackClock "0:01:16"]

1. d4 {[%clk 0:03:00]}  d5 {[%clk 0:02:52]} 2. c4 {[%clk 0:03:00]}  e6 {[%clk 0:02:49]} 3. Nc3 {[%clk 0:03:01]}  Nf6 {[%clk 0:02:48]} 4. cxd5 {[%clk 0:03:00]}  exd5 {[%clk 0:02:49]} 5. Bf4 {[%clk 0:03:01]}  Be7 {[%clk 0:02:50]} 6. e3 {[%clk 0:03:00]}  O-O {[%clk 0:02:50]} 7. Bd3 {[%clk 0:03:00]}  c6 {[%clk 0:02:51]} 8. Nge2 {[%clk 0:03:00]}  a5 {[%clk 0:02:51]} 9. Qc2 {[%clk 0:03:00]}  Na6 {[%clk 0:02:52]} 10. a3 {[%clk 0:03:01]}  Re8 {[%clk 0:02:51]} 11. h3 {[%clk 0:03:01]}  Be6 {[%clk 0:02:51]} 12. O-O {[%clk 0:03:02]}  g6 {[%clk 0:02:50]} 13. Rac1 {[%clk 0:03:02]}  Bd6 {[%clk 0:02:49]} 14. Na4 {[%clk 0:03:01]}  Bxf4 {[%clk 0:02:49]} 15. Nxf4 {[%clk 0:03:02]}  Nd7 {[%clk 0:02:44]} 16. Rb1 {[%clk 0:02:55]}  b5 {[%clk 0:02:43]} 17. Qxc6 {[%clk 0:02:45]}  bxa4 {[%clk 0:02:39]} 18. Bxa6 {[%clk 0:02:45]}  Re7 {[%clk 0:02:34]} 19. Bd3 {[%clk 0:02:44]}  Nb6 {[%clk 0:02:32]} 20. Rfc1 {[%clk 0:02:42]}  Rb8 {[%clk 0:02:32]} 21. Qc2 {[%clk 0:02:41]}  Bd7 {[%clk 0:02:26]} 22. Qd1 {[%clk 0:02:40]}  Be8 {[%clk 0:02:24]} 23. Rc5 {[%clk 0:02:40]}  Ra7 {[%clk 0:02:21]} 24. Rbc1 {[%clk 0:02:40]}  Qd6 {[%clk 0:02:16]} 25. Qf3 {[%clk 0:02:40]}  Rd8 {[%clk 0:02:16]} 26. h4 {[%clk 0:02:40]}  Raa8 {[%clk 0:02:09]} 27. h5 {[%clk 0:02:40]}  Rab8 {[%clk 0:02:09]} 28. h6 {[%clk 0:02:40]}  Qf8 {[%clk 0:02:07]} 29. Qh3 {[%clk 0:02:37]}  Qd6 {[%clk 0:02:05]} 30. Be2 {[%clk 0:02:33]}  Bd7 {[%clk 0:01:57]} 31. Qg3 {[%clk 0:02:32]}  Be8 {[%clk 0:01:52]} 32. Bf3 {[%clk 0:02:32]}  Qf8 {[%clk 0:01:47]} 33. Qh2 {[%clk 0:02:30]}  Qe7 {[%clk 0:01:40]} 34. Bxd5 {[%clk 0:02:29]}  g5 {[%clk 0:01:36]} 35. Qg3 {[%clk 0:02:28]}  Kf8 {[%clk 0:01:35]} 36. Bf3 {[%clk 0:02:28]}  f6 {[%clk 0:01:30]} 37. Nd3 {[%clk 0:02:11]}  Bg6 {[%clk 0:01:26]} 38. Rc7 {[%clk 0:02:11]}  Nd7 {[%clk 0:01:17]} 39. Nc5 {[%clk 0:02:11]}  Rxb2 {[%clk 0:01:16]} 40. Bc6 {[%clk 0:02:08]} 1-0


[Site "https://www.chess.com"]